lending/lending_fUSD_20240206
["ID","MTS","AMOUNT","RATE_DAILY","PERIOD"]
[313347234,1707197432032,-715.45,0.000228,2]
[313347235,1707197432041,-135.69032165,0.000228,2]
[313347236,1707197432054,-582.33967835,0.000228,2]
[313347237,1707197432063,-724.85,0.000228,2]
[313347238,1707197432072,-160.6089678,0.000228,2]
[313347239,1707197432082,-19798.0,0.00022855,2]
[313347240,1707197432091,-2284.0,0.00022855,2]
[313347241,1707197432100,-840.0,0.00022855,2]
[313347242,1707197432213,-992.2414,0.00022898,2]
[313347243,1707197432226,-3042.2454,0.00022898,2]
[313347244,1707197432235,-440.5005,0.00022898,2]
[313347245,1707197432244,-1016.1630962,0.00022899,2]
[313347246,1707197432253,-11839.05095757,0.000229,2]
[313347247,1707197432284,-741.12863767,0.000229,2]
[313347248,1707197432295,-278.57408453,0.000229,2]
[313347249,1707197432307,-590.47055933,0.000229,2]
[313347250,1707197432325,-7436.57446842,0.000229,2]
[313347251,1707197432337,-1015.0777163,0.000229,2]
[313347252,1707197432362,-744.64168612,0.000229,2]
[313347253,1707197432373,-1755.62689006,0.000229,2]
[313347254,1707197432382,-6300.27132482,0.000229,2]
[313347255,1707197432391,-160.6089678,0.000229,2]
[313347256,1707197432400,-5000.0,0.000229,2]
[313347257,1707197432409,-1561.34251145,0.000229,2]
[313347258,1707197432420,-156.58120718,0.000229,2]
[313347259,1707197432429,-187.97076794,0.000229,2]
[313347260,1707197432438,-2696.34853862,0.000229,2]
[313347261,1707197432448,-212.46199748,0.000229,2]
[313347262,1707197432457,-1288.5309666,0.000229,2]
[313347263,1707197432469,-408.91576095,0.00022997,2]
[313347264,1707197432478,-17178.8420996,0.00022997,2]
[313347265,1707197432487,-246.72755518,0.00022998,2]
[313347266,1707197432496,-33581.01864055,0.00022998,2]
[313347267,1707197432508,-250.19404164,0.00022998,2]
[313347268,1707197432520,-2728.03785908,0.00022998,2]
[313347269,1707197432533,-750.0,0.00022998,2]
[313347270,1707197432553,-43244.31818118,0.00022998,2]
[313347276,1707197437944,-553.19678644,0.00022855,2]
[313347277,1707197437955,-730.50066288,0.00022855,2]
[313347278,1707197437966,-289.4002629,0.00022855,2]
[313347279,1707197438083,-281.90228778,0.00022855,2]
[313347280,1707197438093,-950.0,0.00022855,2]
[313347281,1707197438102,-169.8026637,0.000229,2]
[313347282,1707197438112,-982.72644759,0.00022998,2]
[313347283,1707197438129,-1464.98189673,0.00022998,2]
[313347284,1707197438142,-664.88675611,0.00022998,2]
[313347285,1707197438167,-2888.88628797,0.00022998,2]
[313347286,1707197438179,-1027.53255409,0.00022998,2]
[313347287,1707197438197,-1057.50577941,0.00022998,2]
[313347288,1707197438212,-797.04011047,0.00022998,2]
[313347289,1707197438226,-320.02750419,0.00022998,2]
[313347290,1707197438238,-16789.3508033,0.00022998,2]
[313347291,1707197438265,-13294.38879017,0.00022998,2]
[313347292,1707197438276,-50111.0287922,0.00022998,2]
[313347293,1707197438286,-509.65449531,0.00022999,2]
[313347294,1707197438295,-4269.50159054,0.00023,2]
[313347295,1707197438306,-77343.36169368,0.00023,2]
[313347296,1707197438322,-1766.9567314,0.00023,2]
[313347306,1707197440482,-173.604,0.00022855,2]
[313347307,1707197440492,-180.05599998,0.00023,2]
[313347308,1707197440536,-639.14654176,0.00023,2]
[313347309,1707197440548,-3303.94373171,0.00023,2]
[313347310,1707197441277,-619.40917737,0.00023,2]
[313347311,1707197441384,-342.58214124,0.00023,2]
[313347323,1707197442966,-272.617,0.00022855,2]
[313347325,1707197442976,-270.72274753,0.00023,2]
[313347329,1707197443021,-388.64360985,0.00023,2]
[313347330,1707197443033,-1425.81963666,0.00023,2]
[313347331,1707197443131,-653.03474555,0.00023,2]
[313347332,1707197443145,-627.83607435,0.00023,2]
[313347333,1707197443185,-3790.08789012,0.00023,2]
[313347334,1707197443241,-8861.70707,0.00023,2]
[313347335,1707197443255,-601.317464,0.00023,2]
[313347338,1707197446148,-1037.203,0.00022918,2]
[313347339,1707197446158,-820.95850761,0.00023,2]
[313347340,1707197446206,-20652.55796317,0.00023,2]
[313347341,1707197446220,-3981.04713873,0.00023,2]
[313347342,1707197446232,-10422.5573131,0.00023,2]
[313347343,1707197446244,-35989.32583994,0.00023,2]
[313347344,1707197446256,-865.07617275,0.00023,2]
[313347345,1707197446269,-390.61508953,0.00023,2]
[313347346,1707197446315,-316.75908617,0.00023,2]
[313347355,1707197449874,226.1309684,0.00022999,4]
[313347356,1707197456622,3202.05110341,0.00022079,2]
[313347357,1707197488917,154.79,0.00021685,2]
[313347358,1707198020313,154.79,0.00020473,2]
[313347359,1707198091280,590.08,0.00022421,2]
[313347360,1707198156017,168.71,0.00022164,2]
[313347361,1707198333746,208.0,0.00021553,2]
[313347362,1707198379087,170.06,0.00022293,2]
[313347363,1707198407113,-163.9,0.00022522,2]
[313347364,1707198407135,-73.67959406,0.00022522,2]
[313347365,1707198492578,154.79,0.000206,2]
[313347366,1707198614425,527.93,0.00022493,2]
[313347368,1707198632127,-89.00627918,0.00022522,2]
[313347369,1707198632137,-162.68587324,0.00022525,2]
[313347370,1707198632147,-162.68587324,0.00022548,2]
[313347371,1707198632290,-163.42,0.00022617,2]
[313347372,1707198632300,-167.15626884,0.00022798,2]
[313347373,1707198632310,-490.12289227,0.00022896,2]
[313347374,1707198632319,-424.1999,0.00022897,2]
[313347375,1707198632329,-150.0,0.00022897,2]
[313347376,1707198632338,-1077.30734969,0.00022898,2]
[313347377,1707198632354,-8134.70363182,0.00022898,2]
[313347378,1707198632394,-1169.53619494,0.00022898,2]
[313347380,1707198632417,-7994.22408937,0.00022898,2]
[313347383,1707198632437,-627.62684945,0.00022898,2]
[313347433,1707198638176,-285.49172499,0.00022898,2]
[313347434,1707198638188,-429.0,0.00022898,2]
[313347435,1707198638333,-424.67224186,0.00022898,2]
[313347436,1707198638346,-555.78581788,0.00022898,2]
[313347437,1707198638356,-143.74458539,0.00022898,2]
[313347438,1707198638391,-3850.34761461,0.00022898,2]
[313347439,1707198638400,-5775.2487144,0.000229,2]
[313347440,1707198638409,-5000.0,0.000229,2]
[313347441,1707198638419,-1402.87097827,0.000229,2]
[313347442,1707198638428,-156.58120718,0.000229,2]
[313347443,1707198638437,-167.15626883,0.000229,2]
[313347444,1707198638447,-212.46199748,0.000229,2]
[313347445,1707198638456,-1797.5656924,0.000229,2]
[313347446,1707198638465,-491.35943145,0.00022917,2]
[313347447,1707198638475,-1654.304,0.00022918,2]
[313347448,1707198638484,-1367.433,0.00022918,2]
[313347449,1707198638493,-388.304,0.00022918,2]
[313347450,1707198638502,-1034.0,0.00022918,2]
[313347451,1707198638511,-150.0,0.00022918,2]
[313347452,1707198638520,-950.0,0.00022918,2]
[313347453,1707198638529,-840.0,0.00022918,2]
[313347454,1707198638538,-1855.0,0.00022918,2]
[313347455,1707198638547,-706.0,0.00022918,2]
[313347456,1707198638557,-530.0,0.00022918,2]
[313347457,1707198638566,-402.9636905,0.00022918,2]
[313347462,1707198640781,-336.91501424,0.00022918,2]
[313347463,1707198640794,-518.23229526,0.00022918,2]
[313347464,1707198640803,-620.26771474,0.00022918,2]
[313347465,1707198640815,-543.43566378,0.00022918,2]
[313347466,1707198640889,-107.50962148,0.00022918,2]
[313347467,1707198640898,-328.802,0.00022918,2]
[313347468,1707198640907,-88.90183783,0.00022918,2]
[313347469,1707198640919,-148.82016217,0.00022918,2]
[313347470,1707198640928,-428.943,0.00022918,2]
[313347471,1707198640938,-260.71728884,0.00022918,2]
[313347472,1707198640949,-338.99071116,0.00022918,2]
[313347473,1707198640959,-1943.0,0.00022918,2]
[313347474,1707198640968,-532.43376799,0.00022918,2]
[313347475,1707198640985,-469.56623201,0.00022918,2]
[313347476,1707198640994,-265.86985893,0.00022918,2]
[313347477,1707198641739,-816.22100029,0.000229,2]
[313347479,1707198643163,-2991.32937386,0.000229,2]
[313347480,1707198643217,-3569.12017158,0.000229,2]
[313347481,1707198643272,-500.0,0.000229,2]
[313347485,1707198646171,-455.8499999,0.000229,2]
[313347486,1707198646228,-16058.89641002,0.000229,2]
[313347487,1707198646240,-592.13014107,0.00022918,2]
[313347488,1707198646249,-320.0,0.00022918,2]
[313347489,1707198646259,-150.837,0.00022918,2]
[313347490,1707198646268,-370.66457536,0.00022918,2]
[313347491,1707198646280,-425.58743,0.00022918,2]
[313347492,1707198646291,-318.62652592,0.00022918,2]
[313347493,1707198646423,-30.22846872,0.00022918,2]
[313347494,1707198646433,-342.0,0.00022918,2]
[313347495,1707198646442,-1653.94813479,0.00022918,2]
[313347496,1707198646472,-405.81528365,0.00022918,2]
[313347498,1707198656775,420.92436625,0.00021999,2]
[313347499,1707198728455,1015.23780483,0.00022417,2]
[313347500,1707198781576,630.63818155,0.00021999,2]
[313347501,1707198787153,1015.23780483,0.00022417,2]
[313347502,1707198788769,1694.34235594,0.00021999,2]
[313347503,1707198821618,1094.39245299,0.00022329,2]
[313347504,1707198924862,162.69,0.00022356,2]
[313347505,1707198928132,871.11,0.00022356,2]
[313347506,1707198945230,1094.39245299,0.00022471,2]
[313347507,1707199007579,156.6,0.0002036,2]
[313347508,1707199055763,577.65,0.00022214,2]
[313347509,1707199104688,172.31,0.00022211,2]
[313347510,1707199122700,500.0,0.00022503,2]
[313347511,1707199126611,211.38,0.00022211,2]
[313347512,1707199135041,500.0,0.00023,10]
[313347513,1707199152631,529.0,0.00027,30]
[313347514,1707199231997,1073.31,0.00022285,2]
[313347515,1707199315564,328.53188288,0.00022856,3]
[313347516,1707199315652,620.05174761,0.00022856,3]
[313347517,1707199363459,317.2,0.00021961,2]
[313347518,1707199392384,519.43479751,0.00022856,3]
[313347519,1707199420211,191.43,0.00022135,2]
[313347520,1707199467113,300.2,0.00022856,3]
[313347521,1707199467340,158.73,0.00020055,2]
[313347522,1707199542335,205.87924485,0.00022818,3]
[313347523,1707199620489,3138.70124231,0.0002155,2]
[313347524,1707199638478,1184.47536171,0.0002155,2]
[313347525,1707199664880,2524.35656193,0.00021776,2]
[313347526,1707199705216,811.65845032,0.00021776,2]
[313347527,1707199708515,1000.0,0.00021868,2]
[313347528,1707199712854,406.24458942,0.00021123,2]
[313347529,1707199739704,735.37730915,0.00021,2]
[313347530,1707199755277,819.39340833,0.00021123,2]
[313347531,1707199764322,288.28513758,0.00022479,2]
[313347532,1707199766449,500.0,0.00021123,2]
[313347533,1707199786466,500.0,0.00021123,2]
[313347534,1707199790469,264.33,0.00021881,2]
[313347535,1707199804461,401.87226438,0.00021123,2]
[313347556,1707199832342,-280.24516117,0.00022578,2]
[313347557,1707199832400,-200.35808499,0.00022578,2]
[313347558,1707199832413,-145.49555425,0.00022579,2]
[313347559,1707199832544,-24.40746071,0.00022579,2]
[313347560,1707199832554,-177.82922564,0.00022584,2]
[313347561,1707199832564,-169.90301496,0.00022585,2]
[313347562,1707199832574,-177.82922562,0.00022663,2]
[313347563,1707199832583,-155.0,0.00022682,2]
[313347564,1707199832592,-150.0,0.00022683,2]
[313347565,1707199832602,-150.0,0.00022683,2]
[313347566,1707199832611,-2633.87840731,0.00022684,2]
[313347567,1707199832620,-178.34454767,0.00022684,2]
[313347568,1707199832629,-209.31154519,0.00022684,2]
[313347569,1707199832638,-322.5771615,0.00022684,2]
[313347570,1707199832647,-1629.63604272,0.00022684,2]
[313347571,1707199832659,-572.78766273,0.00022684,2]
[313347572,1707199832670,-621.10621984,0.00022684,2]
[313347573,1707199832680,-346.61114155,0.00022684,2]
[313347574,1707199832689,-465.64419467,0.00022684,2]
[313347575,1707199832698,-333.52918316,0.00022685,2]
[313347576,1707199832710,-2275.6,0.00022685,2]
[313347577,1707199832725,-354.27973078,0.00022685,2]
[313347578,1707199832737,-999.87426,0.00022685,2]
[313347579,1707199832748,-301.52504693,0.00022685,2]
[313347580,1707199832759,-423.06054965,0.00022685,2]
[313347581,1707199832769,-288.51388232,0.00022686,2]
[313347604,1707199838326,-898.98004566,0.00022686,2]
[313347605,1707199838337,-13092.97916425,0.00022686,2]
[313347606,1707199838349,-10331.81384446,0.00022686,2]
[313347607,1707199838360,-2027.33882137,0.00022686,2]
[313347608,1707199838420,-1840.01178555,0.00022686,2]
[313347609,1707199838431,-393.58294298,0.00022686,2]
[313347610,1707199838443,-1028.44487161,0.00022686,2]
[313347611,1707199838456,-281.55,0.00022686,2]
[313347612,1707199838496,-1901.93818395,0.00022686,2]
[313347613,1707199838552,-616.01249581,0.00022686,2]
[313347614,1707199838582,-370.9210067,0.00022686,2]
[313347615,1707199838666,-50306.79363681,0.00022686,2]
[313347616,1707199838677,-7126.85793878,0.00022686,2]
[313347617,1707199838687,-7381.32643607,0.00022687,2]
[313347618,1707199838698,-417.121379,0.00022687,2]
[313347623,1707199838811,-13185.59447063,0.00022687,2]
[313347625,1707199838821,-2806.02063156,0.00022704,2]
[313347627,1707199838831,-191.43,0.00022712,2]
[313347629,1707199838840,-177.82922562,0.00022742,2]
[313347631,1707199838848,-2500.0,0.00022756,2]
[313347632,1707199838858,-150.36228,0.0002277,2]
[313347634,1707199838867,-200.0,0.00022815,2]
[313347635,1707199838876,-200.0,0.00022816,2]
[313347636,1707199838885,-177.82922562,0.00022821,2]
[313347637,1707199838894,-1855.0,0.00022857,2]
[313347638,1707199838903,-215.0,0.00022857,2]
[313347639,1707199838912,-706.0,0.00022857,2]
[313347640,1707199838921,-530.0,0.00022857,2]
[313347641,1707199838930,-1251.0,0.00022857,2]
[313347642,1707199838939,-1232.0,0.00022857,2]
[313347643,1707199838948,-236.0,0.00022857,2]
[313347644,1707199838957,-429.553,0.00022857,2]
[313347645,1707199838967,-1002.0,0.00022857,2]
[313347646,1707199838976,-858.0,0.00022857,2]
[313347647,1707199838986,-150.0,0.00022857,2]
[313347648,1707199838994,-1138.0,0.00022857,2]
[313347649,1707199839003,-320.0,0.00022857,2]
[313347650,1707199839013,-342.0,0.00022857,2]
[313347651,1707199839022,-42443.0,0.00022876,2]
[313347652,1707199839031,-4198.0,0.00022876,2]
[313347653,1707199839040,-8142.0,0.00022876,2]
[313347654,1707199839049,-7395.0,0.00022876,2]
[313347655,1707199839058,-2284.0,0.00022876,2]
[313347656,1707199839067,-5611.0,0.00022876,2]
[313347657,1707199839076,-19798.0,0.00022876,2]
[313347658,1707199839085,-2919.0,0.00022876,2]
[313347659,1707199839094,-150.0,0.00022876,2]
[313347660,1707199839103,-1034.0,0.00022876,2]
[313347661,1707199839112,-381.9568,0.000229,2]
[313347662,1707199839121,-156.58120718,0.000229,2]
[313347663,1707199839131,-5293.9779882,0.000229,2]
[313347664,1707199839140,-5000.0,0.000229,2]
[313347665,1707199839149,-177.82922562,0.000229,2]
[313347666,1707199839159,-376.27800612,0.000229,2]
[313347667,1707199839168,-1363.4077297,0.000229,2]
[313347668,1707199839177,-4825.06072854,0.000229,2]
[313347669,1707199839187,-859.0206444,0.000229,2]
[313347670,1707199839196,-199.13535062,0.000229,2]
[313347671,1707199839205,-237.57290163,0.00022916,2]
[313347672,1707199839215,-250.0,0.00022918,2]
[313347673,1707199839224,-214.752,0.00022918,2]
[313347674,1707199839234,-154.0,0.00022918,2]
[313347675,1707199839243,-157.0,0.00022918,2]
[313347676,1707199839252,-158.826,0.00022918,2]
[313347677,1707199839261,-250.0,0.00022918,2]
[313347678,1707199839271,-202.0,0.00022918,2]
[313347679,1707199839280,-153.672,0.00022918,2]
[313347680,1707199839289,-155.356,0.00022918,2]
[313347681,1707199839298,-250.0,0.00022918,2]
[313347682,1707199839307,-151.2,0.00022918,2]
[313347683,1707199839317,-225.731,0.00022918,2]
[313347684,1707199839326,-150.463,0.00022918,2]
[313347685,1707199839335,-282.102,0.00022918,2]
[313347686,1707199839344,-1365.801,0.00022918,2]
[313347687,1707199839354,-2098.242,0.00022918,2]
[313347688,1707199839363,-952.33,0.00022918,2]
[313347689,1707199839372,-840.0,0.00022918,2]
[313347690,1707199839381,-162.33,0.00022945,2]
[313347691,1707199839390,-420.81919516,0.00022987,2]
[313347692,1707199839399,-220.30751523,0.0002299,2]
[313347693,1707199839410,-5465.47341339,0.00022998,2]
[313347694,1707199839423,-578.86856305,0.00022998,2]
[313347695,1707199839433,-7890.32055933,0.00022999,2]
[313347696,1707199839442,-10695.13713558,0.00022999,2]
[313347697,1707199839451,-486.4785342,0.00022999,2]
[313347698,1707199839463,-2150.8,0.00022999,2]
[313347699,1707199839472,-150.84407626,0.00022999,2]
[313347700,1707199839482,-292.8226816,0.00022999,2]
[313347701,1707199839491,-500.0,0.00022999,2]
[313347702,1707199839501,-500.0,0.00022999,2]
[313347703,1707199839510,-500.0,0.00022999,2]
[313347704,1707199839519,-500.0,0.00022999,2]
[313347705,1707199839528,-467.95153309,0.00022999,2]
[313347706,1707199839538,-619.98973804,0.00022999,2]
[313347707,1707199839547,-525.0,0.00023,2]
[313347708,1707199839557,-13199.91929837,0.00023,2]
[313347709,1707199839566,-352436.83734283,0.00023,2]
[313347710,1707199839583,-568288.07850277,0.00023,2]
[313347711,1707199839599,-134101.5548357,0.00023,2]
[313347712,1707199839669,-1156.1043936,0.00023,2]
[313347718,1707199843406,-1085.42,0.00023,2]
[313347719,1707199843425,-1145.80337591,0.00023,2]
[313347720,1707199843514,-1029.01268907,0.00023,2]
[313347721,1707199843627,-1564.82845929,0.00023,2]
[313347722,1707199843681,-8702.01189078,0.00023,2]
[313347749,1707199846579,-569.17622613,0.00022999,2]
[313347750,1707199846589,-64.53376887,0.00022999,2]
[313347751,1707199846601,-862.563003,0.00022999,2]
[313347752,1707199846612,-1103.79613413,0.00022999,2]
[313347753,1707199846621,-54.31218943,0.00023,2]
[313347754,1707199846632,-2152.46439114,0.00023,2]
[313347755,1707199846731,-5000.0,0.00023,2]
[313347761,1707199863883,300.0,0.00027,30]
[313347762,1707199864284,254.22243912,0.00027,30]
[313347763,1707199956796,158.73,0.00020809,2]
[313347764,1707199994728,-2154.58641575,0.00022585,2]
[313347765,1707199994865,-813.8141,0.00022586,2]
[313347766,1707200300926,381.65838754,0.00022586,2]
[313347767,1707200301875,220.27,0.00022586,2]
[313347768,1707200303331,157.68873507,0.00022586,2]
[313347769,1707200330554,150.0,0.00022553,2]
[313347770,1707200436617,162.69,0.00022532,2]
[313347771,1707200461494,160.28,0.00020566,2]
[313347772,1707200572763,177.61,0.00016712,2]
[313347773,1707200622008,1792.19,0.00022396,2]
[313347774,1707200651026,800.0,0.00022396,2]
[313347775,1707200728183,191.44,0.00022497,2]
[313347776,1707200826810,2821.16889659,0.00022454,2]
[313347777,1707200826834,1156.64110341,0.00022454,2]
[313347778,1707200914836,165.63075316,0.00022454,2]
[313347779,1707200917961,161.07714183,0.00020633,2]
[313347780,1707200928062,155.76721313,0.00022454,2]
[313347781,1707200930447,155.0,0.00022454,2]
[313347782,1707200942191,160.28,0.00020356,2]
[313347784,1707201025031,172.31,0.0002217,2]
[313347799,1707201031450,-183.55,0.00022605,2]
[313347801,1707201031459,-121.49940007,0.00022684,2]
[313347806,1707201031506,-78.50059993,0.00022684,2]
[313347807,1707201031515,-538.11588573,0.00022756,2]
[313347808,1707201031527,-318.3432,0.00022756,2]
[313347809,1707201031562,-224.61931427,0.00022756,2]
[313347810,1707201031572,-1362.0,0.000228,2]
[313347811,1707201031581,-319.46245609,0.00022828,2]
[313347812,1707201031592,-7.83884391,0.00022828,2]
[313347813,1707201031602,-150.0,0.00022897,2]
[313347814,1707201031611,-157.44244939,0.00022898,2]
[313347815,1707201031623,-1174.00899426,0.00022898,2]
[313347816,1707201031633,-526.22576295,0.00022898,2]
[313347817,1707201031643,-2297.3999,0.00022898,2]
[313347818,1707201031651,-716.52,0.00022899,2]
[313347819,1707201031661,-714.86,0.000229,2]
[313347820,1707201031669,-499.99,0.000229,2]
[313347821,1707201031679,-454.29,0.000229,2]
[313347822,1707201031688,-882.71154636,0.000229,2]
[313347823,1707201031703,-418.78845364,0.000229,2]
[313347824,1707201031712,-155.86739687,0.000229,2]
[313347825,1707201031721,-2825.34414949,0.000229,2]
[313347829,1707201031847,-1542.6151615,0.000229,2]
[313347831,1707201031863,-524.74062916,0.000229,2]
[313347834,1707201031872,-3891.49049326,0.000229,2]
[313347836,1707201031886,-1108.50950674,0.000229,2]
[313347839,1707201031895,-859.3224338,0.000229,2]
[313347842,1707201031905,-250.85200408,0.000229,2]
[313347845,1707201031914,-1261.75629098,0.000229,2]
[313347848,1707201031923,-1000.0,0.00022917,2]
[313347851,1707201031933,-19950.59562988,0.00022918,2]
[313347854,1707201031942,-15122.30563257,0.00022925,2]
[313347857,1707201031951,-4586.71508844,0.00022926,2]
[313347860,1707201031960,-1232.0,0.00022928,2]
[313347863,1707201031969,-1251.0,0.00022928,2]
[313347866,1707201031978,-217.011,0.00022928,2]
[313347868,1707201031987,-215.0,0.00022928,2]
[313347871,1707201031996,-706.0,0.00022928,2]
[313347873,1707201032005,-1946.824,0.00022928,2]
[313347876,1707201032014,-321.409,0.00022928,2]
[313347879,1707201032023,-169.278,0.00022928,2]
[313347882,1707201032032,-428.0,0.00022928,2]
[313347885,1707201032041,-150.0,0.00022928,2]
[313347887,1707201032051,-1138.0,0.00022928,2]
[313347889,1707201032060,-320.0,0.00022928,2]
[313347891,1707201032069,-858.0,0.00022928,2]
[313347893,1707201032078,-342.0,0.00022928,2]
[313347895,1707201032087,-150.0,0.00022928,2]
[313347897,1707201032096,-1034.0,0.00022928,2]
[313347899,1707201032105,-7395.0,0.00022928,2]
[313347901,1707201032114,-5611.0,0.00022928,2]
[313347903,1707201032123,-8142.0,0.00022928,2]
[313347904,1707201032132,-2284.0,0.00022928,2]
[313347906,1707201032141,-19798.0,0.00022928,2]
[313347908,1707201032150,-42443.0,0.00022928,2]
[313347910,1707201032159,-1365.0,0.00022928,2]
[313347912,1707201032168,-4198.0,0.00022928,2]
[313347914,1707201032176,-2919.0,0.00022928,2]
[313347916,1707201032186,-420.81919516,0.00022987,2]
[313347918,1707201032195,-2122.52560897,0.00022996,2]
[313347920,1707201032204,-492.2537783,0.00022997,2]
[313347922,1707201032213,-40986.72749328,0.00022998,2]
[313347926,1707201032241,-549.35079271,0.00022998,2]
[313347928,1707201032253,-861.30312776,0.00022998,2]
[313347949,1707201037497,-422.83764416,0.00022937,2]
[313347950,1707201037555,-417.16235584,0.00022937,2]
[313347951,1707201037565,-1855.0,0.00022937,2]
[313347952,1707201037575,-2175.64784679,0.00022998,2]
[313347953,1707201037612,-427.3,0.00022998,2]
[313347954,1707201037625,-5628.37594026,0.00022998,2]
[313347955,1707201037827,-15570.04461585,0.00022998,2]
[313347956,1707201037883,-859.204132,0.00022998,2]
[313348168,1707201040042,-478.22499076,0.00022928,2]
[313348260,1707201040890,-471.77500924,0.00022928,2]
[313348261,1707201040900,-165.49434907,0.00022998,2]
[313348264,1707201040911,-1267.80842534,0.00022998,2]
[313348281,1707201041064,-4097.45397246,0.00022998,2]
[313348283,1707201041080,-998.486475,0.00022998,2]
[313348301,1707201042574,-1034.0,0.00022928,2]
[313348302,1707201042584,-487.56675804,0.00022998,2]
[313348303,1707201042692,-469.96042638,0.00022998,2]
[313348304,1707201042704,-7765.07863769,0.00022998,2]
[313348305,1707201042715,-13806.14990613,0.00022998,2]
[313348306,1707201042736,-580.10775283,0.00022998,2]
[313348307,1707201042789,-2480.31102621,0.00022998,2]
[313348308,1707201042846,-1300.1326,0.00022998,2]
[313348309,1707201042858,-2343.59286115,0.00022998,2]
[313348311,1707201045528,-190.04595028,0.000229,2]
[313348312,1707201045549,-150.0,0.00022937,2]
[313348313,1707201045558,-168.66363611,0.00022998,2]
[313348314,1707201045584,-2859.71598182,0.00022998,2]
[313348315,1707201045750,-647.88662886,0.00022998,2]
[313348329,1707201095725,3172.40086865,0.00022998,7]
[313348330,1707201100403,-1000.0,0.00022898,2]
[313348331,1707201100424,-2500.0,0.00022898,2]
[313348332,1707201100446,-2500.0,0.000229,2]
[313348333,1707201112235,-77799.1096,0.00022898,2]
[313348334,1707201112256,-2500.0,0.000229,2]
[313348335,1707201112265,-572.88162254,0.000229,2]
[313348336,1707201112274,-706.0,0.00022937,2]
[313348337,1707201112283,-215.0,0.00022937,2]
[313348338,1707201112292,-1232.0,0.00022937,2]
[313348339,1707201112301,-1251.0,0.00022937,2]
[313348340,1707201112311,-1943.0,0.00022937,2]
[313348341,1707201112320,-428.0,0.00022937,2]
[313348342,1707201112329,-1138.0,0.00022937,2]
[313348343,1707201112338,-150.0,0.00022937,2]
[313348344,1707201112348,-858.0,0.00022937,2]
[313348345,1707201112357,-320.0,0.00022937,2]
[313348346,1707201112366,-342.0,0.00022937,2]
[313348347,1707201112375,-2025.09528888,0.00022996,2]
[313348348,1707201112385,-8491.04105989,0.00022997,2]
[313348349,1707201112401,-28.87242869,0.00022997,2]
[313348350,1707201163125,-167.23466938,0.000229,2]
[313348351,1707201163149,-841.17086066,0.000229,2]
[313348352,1707201163173,-24991.59446996,0.00022997,2]
[313348353,1707201407831,5454.51964821,0.0002705,120]
[313348354,1707201442132,150.66,0.0002056,2]
[313348355,1707201573806,207.0,0.00022164,2]
[313348356,1707201596161,152.95,0.00022432,2]
[313348357,1707201622824,250.0,0.00022481,2]
[313348358,1707201628607,278.79,0.0002244,2]
[313348359,1707201630647,5918.89854064,0.00021787,7]
[313348360,1707201633016,352.55,0.00022,2]
[313348361,1707201644699,398.59,0.00022375,2]
[313348362,1707201738889,1000.0,0.00022295,2]
[313348363,1707201748789,165.32,0.00022332,2]
[313348364,1707201750513,1696.31,0.00022332,2]
[313348365,1707201816029,1356.0,0.00022538,2]
[313348366,1707201864594,150.86,0.00020471,2]
[313348367,1707201893005,193.11,0.00022475,2]
[313348368,1707202005105,-237.58182927,0.00022705,2]
[313348369,1707202028567,154.85,0.00022565,2]
[313348370,1707202148141,163.87,0.00022521,2]
[313348371,1707202162018,200.0,0.00022336,2]
[313348380,1707202231748,-253.02146915,0.00022705,2]
[313348381,1707202231758,-78.60734507,0.00022737,2]
[313348382,1707202231771,-91.93880451,0.00022737,2]